bitfinex/quotes_SOLUSD_20251030
["timestamp","ask_amount","ask_price","bid_price","bid_amount"]
[1761797458726,5.02990156,194.79,194.72,0.80216157]
[1761797459021,5.02990156,194.82,194.74,5.02990156]
[1761797459224,50.0,194.9,194.78,5.02990156]
[1761797459425,50.0,194.93,194.8,5.02990156]
[1761797459603,50.0,194.93,194.82,5.02990156]
[1761797459823,50.0,194.97,194.84,5.02990156]
[1761797460024,55.12901324,194.97,194.84,0.14216157]
[1761797460230,5.02990156,194.86,194.81,0.66]
[1761797460439,5.02990156,194.82,194.76,0.66]
[1761797460810,25.62190156,194.88,194.73,5.13531556]
[1761797460811,20.592,194.88,194.77,4.41950411]
[1761797461027,5.02990156,194.84,194.78,4.41951509]
[1761797461202,20.592,194.88,194.78,0.66]
[1761797461203,5.02990156,194.82,194.78,0.66]
[1761797461399,5.02990156,194.79,194.7,12.9400244]
[1761797461596,5.02990156,194.78,194.71,9.55831107]
[1761797461796,5.02990156,194.78,194.72,3.76246803]
[1761797462000,5.02990156,194.74,194.7,0.1]
[1761797462226,55.02990156,194.76,194.7,0.1]
[1761797462532,20.592,194.79,194.7,0.76]
[1761797462710,5.02990156,194.77,194.7,0.76]
[1761797463036,5.02990156,194.76,194.7,0.76]
[1761797463231,5.02990156,194.76,194.7,5.89592661]
[1761797463725,5.13294196,194.83,194.7,5.89592661]
[1761797463726,50.0,194.83,194.71,5.79580185]
[1761797463933,5.02990156,194.79,194.72,3.76762067]
[1761797464231,5.02990156,194.75,194.7,0.1]
[1761797464523,20.592,194.78,194.7,0.1]
[1761797464826,5.02990156,194.71,194.7,0.1]
[1761797465029,50.0,194.76,194.7,0.1]
[1761797465233,5.02990156,194.71,194.7,0.1]
[1761797465546,7.5606053,194.71,194.7,0.1]
[1761797466709,12.69644834,194.71,194.7,0.1]
[1761797467037,20.592,194.71,194.7,0.1]
[1761797467640,78.1526053,194.71,194.7,0.1]
[1761797467808,83.28844834,194.71,194.7,0.1]
[1761797469152,93.07727603,194.71,194.7,0.1]
[1761797469330,50.0,194.67,194.58,0.66]
[1761797469541,50.0,194.67,194.54,3.16586069]
[1761797469542,7.5606053,194.59,194.54,3.16586069]
[1761797469742,20.592,194.62,194.55,0.66]
[1761797469939,7.5606053,194.56,194.55,0.66]
[1761797470130,28.1526053,194.56,194.54,3.16586069]
[1761797470339,28.1526053,194.56,194.5,0.1]
[1761797470340,50.0,194.51,194.5,0.1]
[1761797470521,70.592,194.48,194.37,0.66]
[1761797470717,70.592,194.48,194.36,5.14503766]
[1761797470718,65.1212106,194.47,194.36,0.66]
[1761797470914,7.5606053,194.37,194.33,0.66]
[1761797471118,7.5606053,194.34,194.33,0.66]
[1761797471414,7.5606053,194.34,194.22,0.51488003]
[1761797471415,7.5606053,194.34,194.26,5.14769651]
[1761797471615,7.5606053,194.3,194.24,5.14811539]
[1761797471842,7.5606053,194.37,194.28,12.70781551]
[1761797472043,7.5606053,194.39,194.28,5.66193123]
[1761797472225,100.0,194.43,194.25,0.66]
[1761797472544,7.5606053,194.26,194.22,0.66]
[1761797472750,7.5606053,194.24,194.18,0.69]
[1761797473090,20.592,194.32,194.2,0.69]
[1761797473220,7.5606053,194.29,194.2,0.69]
[1761797473426,7.5606053,194.27,194.2,0.69]
[1761797473632,70.592,194.35,194.2,0.69]
[1761797473821,7.5606053,194.23,194.21,5.14906544]
[1761797474042,7.5606053,194.23,194.2,0.69]
[1761797474225,7.5606053,194.23,194.2,5.83927588]
[1761797474426,20.592,194.3,194.21,3.739159]
[1761797474427,20.592,194.28,194.21,3.739159]
[1761797474629,20.592,194.28,194.11,0.5151718]
[1761797474630,20.592,194.26,194.22,3.739159]
[1761797474857,50.0,194.31,194.23,3.739159]
[1761797475025,50.0,194.39,194.25,9.78882769]
[1761797475226,50.0,194.44,194.28,0.14216157]
[1761797475526,20.592,194.41,194.29,0.69]
[1761797475735,7.5606053,194.37,194.29,0.69]
[1761797475939,3.61334596,194.36,194.3,7.5606053]
[1761797476144,3.61334596,194.35,194.3,7.5606053]
[1761797476454,50.0,194.47,194.33,7.5606053]
[1761797476662,50.0,194.47,194.34,3.73075309]
[1761797476826,7.5606053,194.42,194.35,3.73075309]
[1761797477153,7.5606053,194.42,194.3,0.14216157]
[1761797477154,7.5606053,194.4,194.36,3.73075309]
[1761797477358,20.592,194.43,194.37,3.73075309]
[1761797477568,7.5606053,194.4,194.38,3.73075309]
[1761797477739,50.0,194.46,194.39,3.73075309]
[1761797478050,50.0,194.49,194.4,3.73075309]
[1761797478265,7.5606053,194.44,194.41,3.73075309]
[1761797478460,7.5606053,194.48,194.38,5.14448]
[1761797478751,7.5606053,194.52,194.45,7.5606053]
[1761797478955,50.0,194.56,194.45,7.5606053]
[1761797479126,7.5606053,194.52,194.44,7.5606053]
[1761797479328,7.5606053,194.48,194.39,7.5606053]
[1761797479528,7.5606053,194.44,194.36,7.5606053]
[1761797479741,7.5606053,194.46,194.39,7.5606053]
[1761797480071,20.592,194.51,194.39,7.5606053]
[1761797480072,20.592,194.48,194.39,7.5606053]
[1761797480226,7.5606053,194.47,194.39,7.5606053]
[1761797480434,7.5606053,194.47,194.4,7.5606053]
[1761797480632,50.0,194.53,194.42,7.5606053]
[1761797480931,7.5606053,194.52,194.44,7.5606053]
[1761797481231,7.5606053,194.49,194.41,7.5606053]
[1761797481446,7.5606053,194.5,194.42,11.2801358]
[1761797481654,7.5606053,194.44,194.43,3.7195305]
[1761797481844,7.5606053,194.45,194.43,3.7195305]
[1761797482051,7.5606053,194.49,194.44,3.7195305]
[1761797482250,50.0,194.57,194.45,11.2801358]
[1761797482430,55.13813054,194.63,194.5,7.5606053]
[1761797482633,7.5606053,194.55,194.51,4.4295305]
[1761797482832,50.0,194.58,194.52,3.7195305]
[1761797483033,50.0,194.6,194.53,3.7186615]
[1761797483233,100.0,194.62,194.54,3.7186615]
[1761797483441,100.0,194.62,194.45,0.71]
[1761797483442,50.0,194.66,194.47,0.14216157]
[1761797483643,50.0,194.69,194.53,20.592]
[1761797483848,7.5606053,194.67,194.56,0.14216157]
[1761797484052,50.0,194.72,194.6,7.5606053]
[1761797484340,50.0,194.79,194.61,0.85216157]
[1761797484572,7.5606053,194.78,194.72,7.5606053]
[1761797484870,50.0,194.82,194.71,7.5606053]
[1761797484871,7.5606053,194.77,194.71,7.5606053]
[1761797485034,7.5606053,194.76,194.71,0.71]
[1761797485235,20.592,194.79,194.71,8.2706053]
[1761797485466,100.0,194.84,194.71,0.71]
[1761797485772,100.0,194.84,194.71,8.2706053]
[1761797485968,100.0,194.84,194.73,5.13531556]
[1761797485969,7.5606053,194.78,194.73,5.13531556]
[1761797486261,7.5606053,194.81,194.73,5.13531556]
[1761797486474,7.5606053,194.79,194.73,8.2706053]
[1761797486635,7.5606053,194.74,194.67,0.71]
[1761797486840,7.5606053,194.75,194.69,7.5606053]
[1761797487057,50.0,194.8,194.7,7.5606053]
[1761797487235,50.0,194.83,194.68,0.71]
[1761797487236,7.5606053,194.77,194.71,7.5606053]
[1761797487445,50.0,194.82,194.69,7.5606053]
[1761797487656,50.0,194.82,194.71,7.5606053]
[1761797487851,7.5606053,194.78,194.72,7.5606053]
[1761797488165,50.0,194.85,194.75,7.5606053]
[1761797488371,9.78882769,194.89,194.77,7.5606053]
[1761797488372,7.5606053,194.83,194.77,7.5606053]
[1761797488561,100.0,194.85,194.73,0.71]
[1761797488763,7.5606053,194.77,194.71,7.5606053]
[1761797489149,7.5606053,194.79,194.73,7.5606053]
[1761797489342,20.592,194.85,194.72,0.71]
[1761797489548,50.0,194.89,194.77,7.5606053]
[1761797489772,7.5606053,194.84,194.78,7.5606053]
[1761797489951,7.5606053,194.85,194.79,12.69433906]
[1761797490156,7.5606053,194.86,194.8,7.5606053]
[1761797490474,7.5606053,194.85,194.8,0.71]
[1761797490646,20.592,194.88,194.8,0.71]
[1761797490842,20.592,194.87,194.77,7.5606053]
[1761797491072,50.0,194.85,194.73,0.71]
[1761797491249,7.5606053,194.79,194.73,8.2706053]
[1761797491655,70.592,194.87,194.74,8.2706053]
[1761797491958,7.5606053,194.83,194.77,7.5606053]
[1761797492161,7.5606053,194.83,194.77,8.2706053]
[1761797492484,20.592,194.87,194.74,5.13486853]
[1761797492485,20.592,194.87,194.78,0.71]
[1761797492657,25.72367407,194.87,194.75,8.2706053]
[1761797492855,25.72367407,194.87,194.76,7.5606053]
[1761797492856,7.5606053,194.83,194.76,7.5606053]
[1761797493085,7.5606053,194.82,194.76,0.71]
[1761797493385,7.5606053,194.8,194.76,0.71]
[1761797493553,11.20129679,194.79,194.76,0.71]
[1761797493753,7.5606053,194.77,194.72,0.71]
[1761797493950,3.64069149,194.76,194.73,7.5606053]
[1761797494150,3.64069149,194.75,194.73,7.5606053]
[1761797494368,3.64069149,194.74,194.73,0.71]
[1761797495182,3.64069149,194.74,194.65,0.51374261]
[1761797495183,11.20129679,194.74,194.65,0.71]
[1761797495388,7.5606053,194.71,194.66,0.71]
[1761797495672,7.5606053,194.74,194.67,7.5606053]
[1761797495869,20.592,194.77,194.67,0.14216157]
[1761797496078,7.5606053,194.73,194.68,0.71]
[1761797496443,7.5606053,194.72,194.68,0.71]
[1761797496644,7.5606053,194.75,194.69,0.14216157]
[1761797496849,22.61868274,194.86,194.7,8.2706053]
[1761797496850,7.5606053,194.77,194.7,8.2706053]
[1761797497044,62.82985505,194.86,194.72,0.14216157]
[1761797497045,100.0,194.86,194.72,0.14216157]
[1761797497250,7.5606053,194.88,194.75,7.5606053]
[1761797497251,57.5606053,194.88,194.75,7.5606053]
[1761797497453,7.5606053,194.81,194.73,0.71]
[1761797497671,7.5606053,194.82,194.76,7.5606053]
[1761797497980,7.5606053,194.79,194.73,0.71]
[1761797498153,5.13278778,194.83,194.73,0.71]
[1761797498574,7.5606053,194.77,194.73,0.71]
[1761797498980,50.0,194.82,194.7,0.71]
[1761797499167,7.5606053,194.74,194.68,7.5606053]
[1761797499353,7.5606053,194.75,194.68,0.14216157]
[1761797499554,7.5606053,194.73,194.68,8.2706053]
[1761797499766,70.592,194.8,194.69,8.2706053]
[1761797499974,20.592,194.8,194.69,0.71]
[1761797500259,7.5606053,194.77,194.7,0.71]
[1761797500469,7.5606053,194.78,194.72,7.5606053]
[1761797500666,20.592,194.81,194.72,7.5606053]
[1761797500864,20.592,194.81,194.73,8.2706053]
[1761797501050,7.5606053,194.79,194.73,0.71]
[1761797501379,7.5606053,194.79,194.67,0.71]
[1761797501380,7.5606053,194.74,194.67,0.71]
[1761797501594,50.0,194.78,194.67,0.71]
[1761797501760,7.5606053,194.7,194.67,0.71]
[1761797501962,7.5606053,194.72,194.67,0.71]
[1761797502759,7.5606053,194.73,194.67,0.71]
[1761797502967,7.5606053,194.72,194.67,5.84688666]
[1761797503185,7.5606053,194.72,194.67,5.13688666]
[1761797503386,7.5606053,194.75,194.69,7.5606053]
[1761797503585,7.5606053,194.78,194.72,7.5606053]
[1761797503795,50.0,194.85,194.68,0.85216157]
[1761797503796,7.5606053,194.79,194.73,7.5606053]
[1761797503990,100.0,194.88,194.75,7.5606053]
[1761797504215,3.64716591,194.87,194.75,7.5606053]
[1761797504370,7.5606053,194.77,194.72,0.71]
[1761797504571,7.5606053,194.76,194.7,7.5606053]
[1761797504878,7.5606053,194.77,194.72,7.5606053]
[1761797505098,7.5606053,194.79,194.73,7.5606053]
[1761797505576,7.5606053,194.79,194.74,0.71]
[1761797507076,7.5606053,194.77,194.71,7.5606053]
[1761797507307,7.5606053,194.74,194.69,8.2706053]
[1761797507503,7.5606053,194.7,194.64,0.71]
[1761797507710,5.13407065,194.78,194.65,8.41276687]
[1761797508013,55.13372018,194.8,194.7,7.5606053]
[1761797508310,5.13300055,194.82,194.71,7.5606053]
[1761797508497,7.5606053,194.77,194.72,7.5606053]
[1761797508805,20.592,194.83,194.72,7.5606053]
[1761797509015,7.5606053,194.75,194.69,0.14216157]
[1761797509311,7.5606053,194.76,194.7,8.2706053]
[1761797509509,7.5606053,194.77,194.71,7.5606053]
[1761797509682,88.55641467,194.83,194.71,0.71]
[1761797509683,7.5606053,194.76,194.71,0.71]
[1761797509884,7.5606053,194.75,194.71,0.71]
[1761797510082,7.5606053,194.72,194.66,0.71]
[1761797510378,7.5606053,194.71,194.66,0.71]
[1761797511311,7.5606053,194.67,194.52,0.51408595]
[1761797511499,7.5606053,194.58,194.52,8.2706053]
[1761797511808,50.0,194.65,194.53,0.71]
[1761797511986,7.5606053,194.58,194.53,0.71]
[1761797512176,7.5606053,194.56,194.5,7.5606053]
[1761797512588,7.5606053,194.55,194.5,0.67]
[1761797513077,7.5606053,194.55,194.49,7.5606053]
[1761797513078,7.5606053,194.52,194.46,0.67]
[1761797513297,7.5606053,194.6,194.32,18.01152736]
[1761797513298,20.592,194.51,194.32,18.01152736]
[1761797513510,7.5606053,194.51,194.44,8.2306053]
[1761797513694,7.5606053,194.5,194.44,0.67]
[1761797513892,7.5606053,194.49,194.44,0.67]
[1761797514287,20.592,194.53,194.44,0.67]
[1761797514606,50.0,194.6,194.49,7.5606053]
[1761797514799,7.5606053,194.51,194.45,0.67]
[1761797514998,50.0,194.58,194.42,7.5606053]
[1761797514999,7.5606053,194.49,194.42,7.5606053]
[1761797515195,7.5606053,194.48,194.42,5.81348408]
[1761797515391,7.5606053,194.5,194.44,7.5606053]
[1761797515704,20.592,194.58,194.45,7.5606053]
[1761797516001,7.5606053,194.52,194.46,7.5606053]
[1761797516203,7.5606053,194.51,194.45,7.5606053]
[1761797516403,7.5606053,194.51,194.44,7.5606053]
[1761797516607,7.5606053,194.5,194.44,7.5606053]
[1761797516787,100.0,194.56,194.43,13.37362105]
[1761797516983,100.0,194.54,194.36,12.86241618]
[1761797517181,7.5606053,194.47,194.4,8.2306053]
[1761797517381,7.5606053,194.46,194.4,0.67]
[1761797517595,20.592,194.5,194.34,0.67]
[1761797517795,7.5606053,194.43,194.37,7.5606053]
[1761797517994,7.5606053,194.43,194.34,0.67]
[1761797517995,7.5606053,194.45,194.38,8.2306053]
[1761797518207,7.5606053,194.44,194.38,0.67]
[1761797518405,7.5606053,194.42,194.38,0.67]
[1761797518811,7.5606053,194.44,194.38,8.2306053]
[1761797519218,7.5606053,194.46,194.4,7.5606053]
[1761797519432,20.592,194.48,194.39,8.2306053]
[1761797519624,7.5606053,194.5,194.43,7.5606053]
[1761797519798,50.0,194.56,194.39,0.67]
[1761797519799,7.5606053,194.51,194.45,12.7033155]
[1761797520215,7.5606053,194.51,194.45,5.1427102]
[1761797520519,7.5606053,194.5,194.44,7.5606053]
[1761797520838,7.5606053,194.5,194.44,5.14295755]
[1761797521005,7.5606053,194.5,194.44,12.70356285]
[1761797521202,9.78882769,194.61,194.46,7.5606053]
[1761797521203,50.0,194.58,194.46,7.5606053]
[1761797521406,50.0,194.61,194.45,0.67]
[1761797521622,7.5606053,194.53,194.45,0.67]
[1761797521803,7.5606053,194.49,194.38,12.86139912]
[1761797522000,20.592,194.52,194.42,7.5606053]
[1761797522194,20.592,194.52,194.44,7.5606053]
[1761797522400,28.1526053,194.52,194.45,7.5606053]
[1761797522622,20.592,194.52,194.38,0.51445621]
[1761797522835,7.5606053,194.46,194.39,7.5606053]
[1761797523127,7.5606053,194.46,194.38,0.67]
[1761797523128,7.5606053,194.42,194.38,0.67]
[1761797523316,7.5606053,194.42,194.29,0.61469452]
[1761797523317,7.5606053,194.41,194.35,0.67]
[1761797523702,20.592,194.46,194.36,7.5606053]
[1761797523703,7.5606053,194.43,194.36,7.5606053]
[1761797523893,7.5606053,194.43,194.35,5.81510435]
[1761797524100,7.5606053,194.41,194.35,8.2306053]
[1761797524295,7.5606053,194.38,194.3,0.67]
[1761797524536,7.5606053,194.36,194.29,7.6606053]
[1761797524828,50.0,194.48,194.35,7.5606053]
[1761797525007,1.99999999,194.55,194.35,7.5606053]
[1761797525008,7.5606053,194.46,194.4,7.5606053]
[1761797525206,7.5606053,194.48,194.41,8.2306053]
[1761797525427,7.5606053,194.48,194.42,7.5606053]
[1761797525626,7.5606053,194.48,194.42,8.2306053]
[1761797525837,7.5606053,194.6,194.39,7.5606053]
[1761797525838,7.5606053,194.45,194.39,7.5606053]
[1761797526039,7.5606053,194.45,194.38,13.37511779]
[1761797526213,50.0,194.53,194.39,7.5606053]
[1761797526419,7.5606053,194.46,194.4,7.5606053]
[1761797526622,50.0,194.53,194.35,0.67]
[1761797526623,7.5606053,194.42,194.35,0.67]
[1761797526937,20.592,194.46,194.35,0.81216157]
[1761797527139,7.5606053,194.42,194.36,7.5606053]
[1761797527335,20.592,194.44,194.35,0.67]
[1761797527536,5.09115405,194.39,194.35,0.67]
[1761797527712,5.09115405,194.4,194.35,0.67]
[1761797528235,0.14216157,194.59,194.36,0.14216157]
[1761797528431,5.09115405,194.47,194.41,5.09115405]
[1761797528731,5.09115405,194.47,194.4,5.09115405]
[1761797528931,5.09115405,194.41,194.36,1.18450915]
[1761797529110,20.592,194.45,194.36,1.18450915]
[1761797529111,5.09115405,194.4,194.36,0.67]
[1761797529316,5.09115405,194.41,194.36,0.67]
[1761797529527,5.09115405,194.45,194.38,5.09115405]
[1761797529735,105.14071322,194.53,194.4,5.09115405]
[1761797529926,5.09115405,194.47,194.41,5.76115405]
[1761797530137,5.09115405,194.52,194.41,0.67]
[1761797530440,5.09115405,194.46,194.41,0.67]
[1761797530942,5.09115405,194.42,194.32,9.78882769]
[1761797531125,5.09115405,194.42,194.3,21.262]
[1761797531126,50.0,194.41,194.33,0.67]
[1761797531443,50.0,194.45,194.33,5.76115405]
[1761797531740,70.592,194.47,194.35,5.09115405]
[1761797531916,20.592,194.46,194.35,10.23649729]
[1761797532114,109.78882769,194.51,194.36,0.81216157]
[1761797532115,20.592,194.48,194.36,0.81216157]
[1761797532550,70.592,194.48,194.32,0.67]
[1761797532732,5.09115405,194.4,194.33,0.67]
[1761797533244,5.09115405,194.38,194.33,0.67]
[1761797533744,5.09115405,194.36,194.33,0.67]
[1761797533933,5.09115405,194.36,194.33,0.68]
[1761797534246,5.1429412,194.45,194.33,5.77115405]
[1761797534437,5.09115405,194.38,194.33,0.68]
[1761797534746,5.09115405,194.39,194.31,5.09115405]
[1761797534949,20.592,194.41,194.33,0.68]
[1761797535137,20.592,194.43,194.33,5.77115405]
[1761797535332,5.09115405,194.41,194.34,5.09115405]
[1761797535647,5.09115405,194.38,194.32,0.68]
[1761797535846,5.09115405,194.37,194.32,0.68]
[1761797536553,5.09115405,194.35,194.32,0.68]
[1761797537051,5.09115405,194.4,194.33,5.09115405]
[1761797537424,5.09115405,194.4,194.34,0.68]
[1761797537647,5.09115405,194.39,194.34,0.68]
[1761797537834,5.09115405,194.37,194.31,0.68]
[1761797538040,5.14380891,194.41,194.31,0.68]
[1761797538260,5.09115405,194.37,194.31,0.68]
[1761797538763,5.09115405,194.36,194.31,5.82639431]
[1761797539059,5.09115405,194.36,194.31,0.68]
[1761797539265,5.09115405,194.35,194.31,0.68]
[1761797539445,5.09115405,194.36,194.32,0.68]
[1761797540855,20.592,194.4,194.32,10.91728482]
[1761797541067,5.09115405,194.43,194.36,5.09115405]
[1761797541234,5.09115405,194.44,194.37,5.77115405]
[1761797541429,5.09115405,194.52,194.37,5.77115405]
[1761797541430,5.09115405,194.46,194.39,5.09115405]
[1761797541626,5.09115405,194.45,194.38,0.68]
[1761797541825,5.09115405,194.4,194.35,0.68]
[1761797542226,20.592,194.44,194.35,10.91642233]
[1761797542425,5.09115405,194.41,194.35,10.91642233]
[1761797542626,5.09115405,194.41,194.36,0.67]
[1761797542921,20.592,194.44,194.36,0.67]
[1761797543125,50.0,194.51,194.36,0.67]
[1761797543350,50.0,194.51,194.36,5.90331562]
[1761797543351,5.09115405,194.43,194.36,5.90331562]
[1761797543548,20.592,194.48,194.37,5.76115405]
[1761797543748,50.0,194.56,194.38,9.93098926]
[1761797543955,5.09115405,194.49,194.42,10.23458211]
[1761797544141,5.09115405,194.47,194.41,0.14216157]
[1761797544658,5.09115405,194.49,194.42,5.76115405]
[1761797544840,5.09115405,194.5,194.42,5.76115405]
[1761797545158,50.0,194.58,194.44,5.09115405]
[1761797545324,5.09115405,194.52,194.44,5.09115405]
[1761797545529,5.09115405,194.5,194.45,0.67]
[1761797545729,5.09115405,194.48,194.42,0.67]
[1761797546147,5.09115405,194.48,194.43,5.14323921]
[1761797546344,5.09115405,194.44,194.37,5.65925016]
[1761797546549,5.14185273,194.49,194.38,0.67]
[1761797546857,5.09115405,194.43,194.38,0.67]
[1761797547439,25.73385273,194.49,194.38,0.67]
[1761797547648,5.09115405,194.43,194.38,0.67]
[1761797547844,5.09115405,194.43,194.38,5.81453746]
[1761797548136,5.14191718,194.48,194.38,0.67]
[1761797548349,5.09115405,194.39,194.29,0.1]
[1761797548568,5.09115405,194.37,194.29,0.1]
[1761797548756,5.09115405,194.37,194.3,0.67]
[1761797548970,20.592,194.42,194.32,5.09115405]
[1761797549175,5.09115405,194.41,194.34,5.09115405]
[1761797549469,5.09115405,194.4,194.3,0.67]
[1761797549670,50.0,194.44,194.31,10.23756957]
[1761797549871,5.14273505,194.45,194.31,23.10360837]
[1761797550087,70.592,194.46,194.33,5.09115405]
[1761797550088,20.592,194.42,194.33,5.09115405]
[1761797550289,5.09115405,194.41,194.33,5.09115405]
[1761797550583,20.592,194.42,194.32,0.67]
[1761797550584,5.09115405,194.39,194.32,0.67]
[1761797550747,5.09115405,194.37,194.32,0.67]
[1761797551151,5.09115405,194.35,194.29,0.1]
[1761797551350,5.09115405,194.36,194.3,5.81668039]
[1761797551656,5.09115405,194.39,194.31,5.09115405]
[1761797551857,5.09115405,194.39,194.31,5.76115405]
[1761797552076,5.09115405,194.38,194.32,0.67]
[1761797553257,20.592,194.44,194.33,0.14216157]
[1761797553459,5.09115405,194.4,194.32,0.67]
[1761797553758,5.09115405,194.4,194.34,5.14562107]
[1761797554066,5.09115405,194.4,194.33,0.67]
[1761797554268,5.09115405,194.36,194.3,0.81216157]
[1761797554472,5.09115405,194.34,194.3,0.67]
[1761797554660,55.09115405,194.4,194.3,0.67]
[1761797554865,5.09115405,194.34,194.3,0.67]
[1761797555066,5.09115405,194.35,194.29,5.24693885]
[1761797555268,3.69868236,194.34,194.29,5.91693885]
[1761797555473,5.09115405,194.35,194.29,5.24693885]
[1761797555681,5.09115405,194.35,194.3,0.67]
[1761797555984,5.09115405,194.39,194.31,5.14641552]
[1761797556163,3.69921902,194.38,194.34,5.09115405]
[1761797556358,3.69921902,194.37,194.32,0.67]
[1761797556666,5.09115405,194.39,194.32,5.90331562]
[1761797556997,20.592,194.46,194.34,5.09115405]
[1761797557162,5.09115405,194.41,194.35,0.67]
[1761797557493,5.09115405,194.4,194.35,0.67]
[1761797557878,5.1427102,194.45,194.35,0.67]
[1761797558054,5.09115405,194.4,194.35,0.67]
[1761797558660,5.09115405,194.39,194.32,10.23725991]
[1761797558886,5.09115405,194.4,194.33,5.09115405]
[1761797559099,5.09115405,194.41,194.34,5.09115405]
[1761797559277,5.09115405,194.41,194.34,5.76115405]
[1761797559462,5.09115405,194.4,194.34,0.67]
[1761797559990,5.14323921,194.43,194.3,10.90783444]
[1761797560161,3.71305736,194.42,194.32,5.09115405]
[1761797560360,5.09115405,194.38,194.32,5.09115405]
[1761797560559,5.09115405,194.38,194.32,0.67]
[1761797560773,5.09115405,194.37,194.32,0.67]
[1761797560973,5.09115405,194.37,194.29,0.1]
[1761797560974,100.0,194.41,194.29,0.1]
[1761797561176,9.78882769,194.46,194.29,0.1]
[1761797561177,5.09115405,194.39,194.33,5.09115405]
[1761797561377,50.0,194.43,194.33,0.67]
[1761797561667,5.09115405,194.39,194.33,0.67]
[1761797561969,5.09115405,194.38,194.33,0.67]
[1761797562170,5.09115405,194.39,194.33,0.67]
[1761797562489,5.09115405,194.39,194.33,5.81588341]
[1761797562681,5.09115405,194.42,194.35,5.09115405]
[1761797562858,20.592,194.45,194.35,5.09115405]
[1761797563062,5.09115405,194.42,194.36,0.67]
[1761797563274,9.78882769,194.51,194.36,0.67]
[1761797563275,50.0,194.52,194.4,5.09115405]
[1761797563479,50.0,194.52,194.36,0.81216157]
[1761797563480,12.151305,194.51,194.44,5.09115405]
[1761797563775,5.09115405,194.49,194.42,5.09115405]
[1761797563976,5.09115405,194.49,194.42,0.67]
[1761797564176,5.09115405,194.49,194.42,5.76115405]
[1761797564803,5.09115405,194.5,194.44,5.09115405]
[1761797564988,55.13981124,194.56,194.44,5.09115405]
[1761797565302,5.09115405,194.53,194.46,5.09115405]
[1761797565602,5.09115405,194.52,194.45,5.76115405]
[1761797565803,50.0,194.59,194.45,5.76115405]
[1761797565804,50.0,194.6,194.48,5.1419169]
[1761797566106,5.09115405,194.53,194.45,5.1426565]
[1761797566290,20.592,194.55,194.46,0.67]
[1761797566489,5.09115405,194.54,194.47,5.09115405]
[1761797566700,55.13899263,194.6,194.48,5.09115405]
[1761797567029,5.09115405,194.57,194.46,0.81216157]
[1761797567318,5.09115405,194.56,194.49,5.09115405]
[1761797567622,5.09115405,194.53,194.46,5.90331562]
[1761797567910,5.09115405,194.54,194.47,5.14218131]
[1761797568205,5.09115405,194.55,194.47,10.90333536]
[1761797568408,5.09115405,194.55,194.48,0.81216157]
[1761797568709,5.09115405,194.55,194.48,5.90331562]
[1761797568908,110.22896664,194.64,194.51,5.09115405]
[1761797569095,5.09115405,194.58,194.51,5.09115405]
[1761797569412,5.09115405,194.6,194.52,5.76115405]
[1761797569908,5.09115405,194.6,194.53,0.67]
[1761797570213,5.09115405,194.6,194.54,5.14033103]
[1761797570515,75.72969282,194.64,194.53,0.67]
[1761797570516,5.09115405,194.59,194.53,0.67]
[1761797570819,5.09115405,194.59,194.47,13.36925831]
[1761797570820,5.09115405,194.56,194.49,10.90272592]
[1761797571016,5.09115405,194.56,194.5,0.67]
[1761797571217,50.0,194.61,194.47,5.76115405]
[1761797571218,5.09115405,194.55,194.47,5.76115405]
[1761797571399,5.09115405,194.54,194.47,0.81216157]
[1761797571997,5.09115405,194.55,194.48,5.09115405]
[1761797572200,75.73063382,194.61,194.49,10.23256618]
[1761797572499,5.09115405,194.56,194.49,10.23256618]
[1761797572700,5.09115405,194.57,194.5,5.79115405]
[1761797572908,5.09115405,194.57,194.49,5.14141213]
[1761797572909,20.592,194.61,194.51,5.79115405]
[1761797573097,12.84259971,194.67,194.51,5.79115405]
[1761797573098,50.0,194.68,194.56,5.09115405]
[1761797573302,5.09115405,194.64,194.56,5.09115405]
[1761797573615,70.592,194.68,194.56,5.09115405]
[1761797573616,5.09115405,194.63,194.56,0.7]